[Event "2nd Cambridge Open 2024"]
[Site "Cambridge"]
[Date "2024.02.19"]
[Round "1.8"]
[White "Turner, Matthew J"]
[Black "Martin, Lewis"]
[Result "1-0"]
[ECO "A07"]
[WhiteElo "2448"]
[BlackElo "2144"]
[Annotator "ChessBase"]
[PlyCount "59"]
[EventDate "2024.02.18"]
[EventType "swiss"]
[EventCountry "ENG"]
[SourceTitle "playchess.com"]
[Source "ChessBase"]
[SourceQuality "1"]
[TimeControl "5400+30"]

1. Nf3 {[%emt 0:00:08]} Nf6 {[%emt 0:00:24]} 2. g3 {[%emt 0:00:16]} d5 {[%emt 0:01:56]} 3. Bg2 {[%emt 0:01:11]} c6 {[%emt 0:00:31]} 4. O-O {[%emt 0:00:30]} Nbd7 {[%emt 0:00:45]} 5. d3 {[%emt 0:01:59]} e5 {[%emt 0:09:08]} 6. e4 {[%emt 0:06:33]} d4 {[%emt 0:03:40]} 7. c3 {[%emt 0:01:57]} c5 {[%emt 0:01:06]} 8. Na3 {[%emt 0:03:24]} Bd6 {[%emt 0:02:36]} 9. Bd2 {[%emt 0:12:34]} O-O {[%emt 0:03:23]} 10. Qc2 {[%emt 0:01:04]} Qe7 {[%emt 0:02:41]} 11. cxd4 {[%emt 0:04:03]} cxd4 {[%emt 0:02:12]} 12. Nb5 {[%emt 0:00:17]} Ne8 {[%emt 0:13:06]} 13. Nxd6 {[%emt 0:04:26]} Nxd6 {[%emt 0:07:35]} 14. Bb4 {[%emt 0:01:31]} a5 {[%emt 0:02:02]} 15. Ba3 {[%emt 0:00:32]} b5 {[%emt 0:01:24]} 16. Qc6 {[%emt 0:00:49]} Ra6 {[%emt 0:01:25]} 17. Qxb5 {[%emt 0:00:36]} Nxb5 {[%emt 0:01:02]} 18. Bxe7 {[%emt 0:00:06]} Re8 {[%emt 0:00:04]} 19. Rfc1 {[%emt 0:01:25]} Nb6 {[%emt 0:07:23]} 20. Bc5 {[%emt 0:03:11]} Na4 {[%emt 0:01:19]} 21. Nxe5 {[%emt 0:05:06]} Rxe5 {[%emt 0:00:34]} 22. Bxd4 {[%emt 0:00:05]} Re8 {[%emt 0:00:10]} 23. Be3 {[%emt 0:00:21]} Rd6 {[%emt 0:04:56]} 24. Rc2 {[%emt 0:07:27]} Bd7 {[%emt 0:07:59]} 25. b3 {[%emt 0:01:03]} Nb6 {[%emt 0:02:15]} 26. d4 {[%emt 0:00:48]} Rc8 {[%emt 0:07:58]} 27. Rxc8+ {[%emt 0:02:49]} Nxc8 {[%emt 0:00:05]} 28. e5 {[%emt 0:00:33]} Ra6 {[%emt 0:01:07]} 29. Rc1 {[%emt 0:00:58]} Ra7 {[%emt 0:02:29]} 30. a4 {[%emt 0:00:37]} 1-0

[Event "2nd Cambridge Open 2024"]
[Site "Cambridge"]
[Date "2024.02.19"]
[Round "1.9"]
[White "Fava, Lorenzo"]
[Black "Willow, Jonah B"]
[Result "0-1"]
[ECO "B45"]
[WhiteElo "2084"]
[BlackElo "2434"]
[Annotator "ChessBase"]
[PlyCount "70"]
[EventDate "2024.02.18"]
[EventType "swiss"]
[EventCountry "ENG"]
[SourceTitle "playchess.com"]
[Source "ChessBase"]
[SourceQuality "1"]
[TimeControl "5400+30"]

1. e4 {[%emt 0:00:46]} c5 {[%emt 0:00:46]} 2. Nf3 {[%emt 0:00:42]} e6 {[%emt 0:00:44]} 3. d4 {[%emt 0:00:46]} cxd4 {[%emt 0:00:07]} 4. Nxd4 {[%emt 0:00:06]} Nf6 {[%emt 0:01:28]} 5. Nc3 {[%emt 0:01:11]} Nc6 {[%emt 0:00:48]} 6. Nxc6 {[%emt 0:02:16]} bxc6 {[%emt 0:00:15]} 7. e5 {[%emt 0:04:06]} Nd5 {[%emt 0:00:13]} 8. Ne4 {[%emt 0:00:24]} Qc7 {[%emt 0:03:36]} 9. f4 {[%emt 0:00:05]} Qb6 {[%emt 0:01:06]} 10. c4 {[%emt 0:01:14]} Ne3 {[%emt 0:02:13]} 11. Qd3 {[%emt 0:07:21]} Bb4+ {[%emt 0:00:47]} 12. Nc3 {[%emt 0:09:12]} Nf5 {[%emt 0:03:49]} 13. g4 {[%emt 0:09:51]} Nh4 {[%emt 0:01:55]} 14. Be3 {[%emt 0:09:29]} Qa5 {[%emt 0:12:46]} 15. Bf2 {[%emt 0:18:43]} Ng6 {[%emt 0:02:16]} 16. Bg3 {[%emt 0:02:23]} Rb8 {[%emt 0:04:32]} 17. Be2 {[%emt 0:03:48]} O-O {[%emt 0:10:24]} 18. O-O {[%emt 0:05:22]} Bxc3 {[%emt 0:01:42]} 19. bxc3 {[%emt 0:00:29]} Rb2 {[%emt 0:01:01]} 20. h4 {[%emt 0:02:54]} Qc5+ {[%emt 0:10:32]} 21. Kh1 {[%emt 0:01:43]} Ba6 {[%emt 0:00:06]} 22. h5 {[%emt 0:02:29]} Rxe2 {[%emt 0:00:46]} 23. Qxe2 {[%emt 0:01:00]} Bxc4 {[%emt 0:00:04]} 24. Qf2 {[%emt 0:00:37]} Qd5+ {[%emt 0:00:06]} 25. Kh2 {[%emt 0:00:39]} Bxf1 {[%emt 0:00:47]} 26. Rxf1 {[%emt 0:01:19]} Ne7 {[%emt 0:01:41]} 27. Qxa7 {[%emt 0:09:03]} c5 {[%emt 0:04:43]} 28. Qa4 {[%emt 0:06:32]} Ra8 {[%emt 0:00:47]} 29. Rb1 {[%emt 0:00:00]} f5 {[%emt 0:02:11]} 30. Qc2 {[%emt 0:00:23]} Rxa2 {[%emt 0:00:35]} 31. Rb2 {[%emt 0:00:02]} Rxb2 {[%emt 0:01:06]} 32. Qxb2 {[%emt 0:00:01]} fxg4 {[%emt 0:00:55]} 33. h6 {[%emt 0:00:22]} Qa8 {[%emt 0:10:09]} 34. hxg7 {[%emt 0:01:27]} Nf5 {[%emt 0:00:43]} 35. Qe2 {[%emt 0:00:42]} Qh1+ {[%emt 0:00:21]} 0-1

[Event "2nd Cambridge Open 2024"]
[Site "Cambridge"]
[Date "2024.02.19"]
[Round "1.10"]
[White "Wadsworth, Matthew J"]
[Black "Banerjee, Supratit"]
[Result "1-0"]
[ECO "E07"]
[WhiteElo "2450"]
[BlackElo "1984"]
[Annotator "ChessBase"]
[PlyCount "113"]
[EventDate "2024.02.18"]
[EventType "swiss"]
[EventCountry "ENG"]
[SourceTitle "playchess.com"]
[Source "ChessBase"]
[SourceQuality "1"]
[TimeControl "5400+30"]

1. Nf3 {[%emt 0:01:53]} d5 {[%emt 0:00:51]} 2. g3 {[%emt 0:00:08]} Nf6 {[%emt 0:00:44]} 3. Bg2 {[%emt 0:00:11]} e6 {[%emt 0:01:50]} 4. O-O {[%emt 0:01:21]} Be7 {[%emt 0:00:14]} 5. c4 {[%emt 0:00:14]} O-O {[%emt 0:00:15]} 6. d4 {[%emt 0:00:19]} c6 {[%emt 0:00:44]} 7. Nc3 {[%emt 0:00:58]} b6 {[%emt 0:04:01]} 8. b3 {[%emt 0:04:35]} Bb7 {[%emt 0:06:01]} 9. Bb2 {[%emt 0:03:57]} Nbd7 {[%emt 0:05:05]} 10. Rc1 {[%emt 0:01:55]} Rc8 {[%emt 0:06:53]} 11. Qd3 {[%emt 0:09:27]} Re8 {[%emt 0:15:55]} 12. Rfd1 {[%emt 0:04:19]} Ba6 {[%emt 0:06:25]} 13. e4 {[%emt 0:06:18]} c5 {[%emt 0:07:17]} 14. e5 {[%emt 0:08:50]} dxc4 {[%emt 0:03:35]} 15. bxc4 {[%emt 0:01:30]} Nd5 {[%emt 0:01:01]} 16. Nxd5 {[%emt 0:12:55]} exd5 {[%emt 0:00:14]} 17. Qf5 {[%emt 0:00:05]} Nf8 {[%emt 0:05:03]} 18. cxd5 {[%emt 0:01:42]} Qxd5 {[%emt 0:03:26]} 19. Ng5 {[%emt 0:12:49]} Qxa2 {[%emt 0:02:12]} 20. Ra1 {[%emt 0:02:07]} Qb3 {[%emt 0:03:18]} 21. Qxf7+ {[%emt 0:06:58]} Qxf7 {[%emt 0:00:11]} 22. Nxf7 {[%emt 0:00:05]} Bc4 {[%emt 0:04:16]} 23. Nd6 {[%emt 0:01:33]} Bxd6 {[%emt 0:00:09]} 24. exd6 {[%emt 0:00:46]} Bb3 {[%emt 0:05:11]} 25. dxc5 {[%emt 0:02:25]} Bxd1 {[%emt 0:09:15]} 26. Bd5+ {[%emt 0:02:28]} Kh8 {[%emt 0:02:03]} 27. Rxa7 {[%emt 0:00:14]} Re1+ {[%emt 0:00:46]} 28. Kg2 {[%emt 0:00:01]} Ne6 {[%emt 0:02:09]} 29. Bxe6 {[%emt 0:00:30]} Rxe6 {[%emt 0:00:36]} 30. Rxg7 {[%emt 0:00:12]} Bf3+ {[%emt 0:02:27]} 31. Kxf3 {[%emt 0:00:13]} Rf8+ {[%emt 0:00:12]} 32. Rf7+ {[%emt 0:02:05]} Kg8 {[%emt 0:00:09]} 33. Rxf8+ {[%emt 0:00:06]} Kxf8 {[%emt 0:00:11]} 34. cxb6 {[%emt 0:00:06]} Re8 {[%emt 0:00:37]} 35. d7 {[%emt 0:00:09]} Rb8 {[%emt 0:00:05]} 36. Be5 {[%emt 0:00:07]} Rd8 {[%emt 0:00:15]} 37. b7 {[%emt 0:00:16]} Ke7 {[%emt 0:00:05]} 38. b8=Q {[%emt 0:00:17]} Rxb8 {[%emt 0:00:06]} 39. Bxb8 {[%emt 0:00:07]} Kxd7 {[%emt 0:00:06]} 40. Kg4 {[%emt 0:00:06]} Ke6 {[%emt 0:00:06]} 41. Kg5 {[%emt 0:00:03]} Kf7 {[%emt 0:00:14]} 42. Kh6 {[%emt 0:00:04]} Kg8 {[%emt 0:00:06]} 43. Be5 {[%emt 0:00:04]} Kf7 {[%emt 0:00:11]} 44. g4 {[%emt 0:00:04]} Kg8 {[%emt 0:00:07]} 45. g5 {[%emt 0:00:04]} Kf7 {[%emt 0:00:07]} 46. Kxh7 {[%emt 0:00:04]} Ke6 {[%emt 0:00:08]} 47. g6 {[%emt 0:00:04]} Kxe5 {[%emt 0:00:07]} 48. g7 {[%emt 0:00:03]} Kf4 {[%emt 0:00:07]} 49. g8=Q {[%emt 0:00:07]} Kf3 {[%emt 0:00:06]} 50. Qg3+ {[%emt 0:00:05]} Ke4 {[%emt 0:00:09]} 51. Kg6 {[%emt 0:00:03]} Kd4 {[%emt 0:00:13]} 52. Kf5 {[%emt 0:00:04]} Kc4 {[%emt 0:00:11]} 53. Ke5 {[%emt 0:00:04]} Kb5 {[%emt 0:00:15]} 54. Kd5 {[%emt 0:00:08]} Kb6 {[%emt 0:00:10]} 55. Qb8+ {[%emt 0:00:03]} Ka6 {[%emt 0:00:09]} 56. Kc4 {[%emt 0:00:08]} Ka5 {[%emt 0:00:04]} 57. Qa7# {[%emt 0:00:05]} 1-0

[Event "2nd Cambridge Open 2024"]
[Site "Cambridge"]
[Date "2024.02.19"]
[Round "1.11"]
[White "Crocker, Philip J"]
[Black "Wachinger, Nikolas"]
[Result "0-1"]
[ECO "E65"]
[WhiteElo "2137"]
[BlackElo "2437"]
[Annotator "ChessBase"]
[PlyCount "72"]
[EventDate "2024.02.18"]
[EventType "swiss"]
[EventCountry "ENG"]
[SourceTitle "playchess.com"]
[Source "ChessBase"]
[SourceQuality "1"]
[TimeControl "5400+30"]

1. c4 {[%emt 0:00:04]} Nf6 {[%emt 0:01:30]} 2. g3 {[%emt 0:00:19]} g6 {[%emt 0:00:20]} 3. Bg2 {[%emt 0:00:14]} Bg7 {[%emt 0:00:21]} 4. Nc3 {[%emt 0:00:58]} O-O {[%emt 0:01:33]} 5. d4 {[%emt 0:01:05]} d6 {[%emt 0:01:25]} 6. Nf3 {[%emt 0:00:19]} c5 {[%emt 0:01:05]} 7. O-O {[%emt 0:00:43]} cxd4 {[%emt 0:03:36]} 8. Nxd4 {[%emt 0:00:21]} Ng4 {[%emt 0:00:13]} 9. h3 {[%emt 0:02:43]} Ne5 {[%emt 0:00:37]} 10. b3 {[%emt 0:01:21]} Nbc6 {[%emt 0:00:59]} 11. Be3 {[%emt 0:02:31]} Be6 {[%emt 0:42:51]} 12. Rc1 {[%emt 0:03:23]} Rc8 {[%emt 0:05:13]} 13. Qd2 {[%emt 0:02:13]} a6 {[%emt 0:02:45]} 14. Rfd1 {[%emt 1:21:16]} Nxd4 {[%emt 0:09:22]} 15. Bxd4 {[%emt 0:00:00]} b5 {[%emt 0:00:31]} 16. cxb5 {[%emt 0:00:00]} axb5 {[%emt 0:00:12]} 17. Nd5 {[%emt 0:00:00]} Rxc1 {[%emt 0:16:28]} 18. Rxc1 {[%emt 0:00:00]} Bxd5 {[%emt 0:01:17]} 19. Bxd5 {[%emt 0:00:00]} Qb8 {[%emt 0:01:22]} 20. f4 {[%emt 0:00:00]} Nd7 {[%emt 0:00:23]} 21. Bxg7 {[%emt 0:00:00]} Kxg7 {[%emt 0:01:51]} 22. Qc3+ {[%emt 0:00:00]} Nf6 {[%emt 0:00:05]} 23. Kg2 {[%emt 0:00:00]} b4 {[%emt 0:03:13]} 24. Qd2 {[%emt 0:00:00]} Rc8 {[%emt 0:00:42]} 25. Bf3 {[%emt 0:00:00]} Rxc1 {[%emt 0:01:11]} 26. Qxc1 {[%emt 0:00:00]} e5 {[%emt 0:00:06]} 27. fxe5 {[%emt 0:00:00]} dxe5 {[%emt 0:00:02]} 28. Qc4 {[%emt 0:00:00]} Qb6 {[%emt 0:00:59]} 29. Bd5 {[%emt 0:00:00]} Qe3 {[%emt 0:00:28]} 30. Bf3 {[%emt 0:00:00]} e4 {[%emt 0:00:38]} 31. Bg4 {[%emt 0:00:00]} h5 {[%emt 0:00:15]} 32. Bc8 {[%emt 0:00:00]} h4 {[%emt 0:00:23]} 33. gxh4 {[%emt 0:00:00]} Nh5 {[%emt 0:00:04]} 34. Bg4 {[%emt 0:00:00]} Qg3+ {[%emt 0:00:40]} 35. Kf1 {[%emt 0:00:00]} e3 {[%emt 0:00:08]} 36. Qd4+ {[%emt 0:00:00]} Kh7 {[%emt 0:00:09]} 0-1

[Event "2nd Cambridge Open 2024"]
[Site "Cambridge"]
[Date "2024.02.19"]
[Round "1.12"]
[White "Hanley, Craig A"]
[Black "Ismail, Mohammed Aayan"]
[Result "1-0"]
[ECO "D00"]
[WhiteElo "2431"]
[BlackElo "2115"]
[Annotator "TA"]
[PlyCount "77"]
[EventDate "2024.02.18"]
[EventType "swiss"]
[EventCountry "ENG"]
[SourceTitle "playchess.com"]
[Source "ChessBase"]
[SourceQuality "1"]
[TimeControl "5400+30"]

{[%evp 9,77,-3,0,-2,29,4,36,-13,-15,-17,16,10,9,12,17,-4,-1,-16,0,0,-10,-2,-3,-20,-9,-23,0,-3,69,0,0,0,0,0,0,0,10,0,17,14,25,0,0,0,34,0,0,0,0,0,0,-64,-63,-50,-60,-64,-64,-63,0,0,228,221,247,247,304,319,307,310,809,793]} 1. d4 {[%emt 0:00:04]} d5 {[%emt 0:00:12]} 2. Bf4 {[%emt 0:00:54]} Nf6 {[%emt 0:01:03]} 3. Nc3 {[%emt 0:01:42]} e6 {[%emt 0:03:47]} 4. Nb5 {[%emt 0:02:40]} Na6 {[%emt 0:01:32]} 5. e3 {[%emt 0:00:09]} c6 {[%emt 0:02:05]} 6. Nc3 {[%emt 0:00:11]} Bd6 {[%emt 0:04:31]} 7. Nf3 {[%emt 0:04:16]} O-O {[%emt 0:04:55]} 8. Bd3 {[%emt 0:05:39]} (8. Bxa6 $14 {might be stronger.} bxa6 9. Na4) 8... Bxf4 $11 {[%emt 0:07:11]} 9. exf4 {[%emt 0:00:07]} c5 {[%emt 0:02:01]} 10. Bxa6 {[%emt 0:05:13]} bxa6 {[%emt 0:00:26]} 11. O-O {[%emt 0:07:30]} Qc7 {[%emt 0:09:32]} 12. Na4 {[%emt 0:13:29]} cxd4 {[%emt 0:04:51]} 13. Qxd4 {[%emt 0:01:29]} Ne4 {[%emt 0:14:28]} 14. Ne5 {[%emt 0:07:37] Repels Bd7} Bb7 {[%emt 0:07:05]} 15. f3 {[%emt 0:05:06]} Nd6 {[%emt 0:01:22][%cal Ob7c6]} 16. c3 {[%emt 0:05:53]} Rfc8 {[%emt 0:02:30]} 17. Rfd1 {[%emt 0:02:23]} Qa5 {[%emt 0:02:41] White must now prevent ...f6.} 18. b3 {[%emt 0:09:00]} Nb5 {[%emt 0:01:41]} (18... Bc6 $11 19. Nxc6 Rxc6) 19. Qd2 {[%emt 0:09:27] White is more active.} (19. Qb4 $14 Qxb4 20. cxb4) 19... Nxc3 {[%emt 0:07:48][%cal Oa5b5]} 20. Rac1 {[%emt 0:01:05][%cal Ra4c3]} d4 {[%emt 0:00:49]} 21. Nxc3 {[%emt 0:00:51]} (21. Nc4 $2 Rxc4 22. bxc4 Qxa4 $19) 21... dxc3 {[%emt 0:01:10]} 22. Qd7 {[%emt 0:00:50]} Bd5 {[%emt 0:05:09]} 23. Qxf7+ {[%emt 0:02:22]} (23. Nxf7 $2 {perishes.} Rc7 (23... Qxa2 24. Rxd5 Qa3 25. Rdd1 $16) 24. Qd6 c2 $19 (24... Kxf7 $2 25. Rd4 $19) (24... Rxf7 $2 25. Qe5 $19)) 23... Kh8 {[%emt 0:00:01][%cal Oc3c2] Threatens to win with ...c2!} 24. Rc2 {[%emt 0:01:46]} Qc5+ {[%emt 0:00:50]} 25. Kf1 {[%emt 0:00:59]} Rc7 $1 {[%emt 0:02:54]} 26. Qh5 {[%emt 0:00:13]} Rac8 {[%emt 0:02:18]} 27. Rd3 {[%emt 0:01:57] Strongly threatening Rcxc3. The board is on fire.} Qb5 $1 {[%emt 0:01:51][%cal Od5c4] ...Bc4! would now be deadly.} 28. Qh4 {[%emt 0:01:28]} a5 {[%emt 0:01:17] Hoping for ...a4.} 29. Qe1 {[%emt 0:02:53]} Qb4 {[%emt 0:03:16]} 30. Qe3 {[%emt 0:01:24]} (30. g3 $11) 30... a4 $15 {[%emt 0:00:56]} 31. bxa4 {[%emt 0:03:01] [#]} Bxa2 $1 {[%emt 0:00:58] ...Bb1 is the strong threat.} 32. Qd4 {[%emt 0:00:56]} (32. Rd4 Qb1+) 32... Qxd4 {[%emt 0:01:52]} ({Avoid the trap} 32... Qb1+ $2 33. Rd1 $18) 33. Rxd4 {[%emt 0:00:02]} Bb1 {[%emt 0:01:52]} ({Black should play} 33... Bb3 $15 34. Rc1 a5) 34. Rc1 $11 {[%emt 0:00:07]} Rb7 {[%emt 0:00:16] [#]} (34... c2 $11 {and Black has nothing to worry.}) 35. Rxc3 $3 $18 {[%emt 0:00:21][%mdl 512]} Rcb8 {[%emt 0:01:09]} (35... Ra8 36. a5) 36. Rd7 {[%emt 0:00:31]} h6 {[%emt 0:00:31] [#]} 37. Rc8+ $3 {[%emt 0:00:22][%mdl 512]} Rxc8 {[%emt 0:00:17]} 38. Rxb7 {[%emt 0:00:06]} a5 $2 {[%emt 0:00:38]} (38... Rc1+ 39. Kf2 a5) 39. Rxb1 {[%emt 0:00:05] Weighted Error Value: White=0.12 (very precise) /Black=0.26 (precise) .  Loses game:     	---       	Black=1      Mistake:       	White=3     	Black=3      Inaccurate:     	White=1     	Black=4      OK:         	White=14    	Black=7      Best:        	White=4     	Black=2      Strong:       	---       	Black=2      Brilliant:      	White=1     	---} 1-0

[Event "2nd Cambridge Open 2024"]
[Site "Cambridge"]
[Date "2024.02.19"]
[Round "1.13"]
[White "Waller, Dan"]
[Black "Roberson, Peter T"]
[Result "0-1"]
[ECO "B51"]
[WhiteElo "2126"]
[BlackElo "2424"]
[Annotator "ChessBase"]
[PlyCount "70"]
[EventDate "2024.02.18"]
[EventType "swiss"]
[EventCountry "ENG"]
[SourceTitle "playchess.com"]
[Source "ChessBase"]
[SourceQuality "1"]
[TimeControl "5400+30"]

1. e4 {[%emt 1:31:00]} c5 {[%emt 0:00:05]} 2. Nf3 {[%emt 0:00:00]} d6 {[%emt 0:00:06]} 3. Bb5+ {[%emt 0:00:00]} Nd7 {[%emt 0:00:08]} 4. d4 {[%emt 0:00:00]} cxd4 {[%emt 0:00:28]} 5. Qxd4 {[%emt 0:00:00]} a6 {[%emt 0:01:23]} 6. Bxd7+ {[%emt 0:00:00]} Bxd7 {[%emt 0:00:10]} 7. c4 {[%emt 0:00:00]} Nf6 {[%emt 0:02:55]} 8. Bg5 {[%emt 0:00:00]} e6 {[%emt 0:05:13]} 9. O-O {[%emt 0:00:00]} Be7 {[%emt 0:01:05]} 10. Nc3 {[%emt 0:00:00]} O-O {[%emt 0:04:49]} 11. Rfe1 {[%emt 0:00:00]} Qc7 {[%emt 0:08:02]} 12. Rad1 {[%emt 0:00:00]} Rfd8 {[%emt 0:11:54]} 13. b3 {[%emt 0:00:00]} b5 {[%emt 0:04:55]} 14. cxb5 {[%emt 0:00:00]} axb5 {[%emt 0:00:24]} 15. a4 {[%emt 0:00:00]} bxa4 {[%emt 0:04:24]} 16. bxa4 {[%emt 0:00:00]} h6 {[%emt 0:04:41]} 17. Bd2 {[%emt 0:00:00]} e5 {[%emt 0:03:44]} 18. Qd3 {[%emt 0:00:00]} Bxa4 {[%emt 0:01:35]} 19. Nxa4 {[%emt 0:00:00]} Rxa4 {[%emt 0:00:04]} 20. Rc1 {[%emt 0:00:00]} Qb7 {[%emt 0:04:52]} 21. Rb1 {[%emt 0:00:00]} Qa8 {[%emt 0:00:17]} 22. Rb4 {[%emt 0:00:00]} Ra3 {[%emt 0:15:37]} 23. Qb1 {[%emt 0:00:00]} Bf8 {[%emt 0:04:30]} 24. Rb7 {[%emt 0:00:00]} Ra1 {[%emt 0:02:44]} 25. Qb3 {[%emt 0:00:27]} Rd7 {[%emt 0:01:40]} 26. Rxd7 {[%emt 0:02:38]} Nxd7 {[%emt 0:00:20]} 27. Rxa1 {[%emt 0:00:51]} Qxa1+ {[%emt 0:00:03]} 28. Ne1 {[%emt 0:00:11]} Nc5 {[%emt 0:02:20]} 29. Qc2 {[%emt 0:00:15]} Qd4 {[%emt 0:01:20]} 30. Be3 {[%emt 0:02:54]} Qxe4 {[%emt 0:01:47]} 31. Qc3 {[%emt 0:03:19]} d5 {[%emt 0:02:48]} 32. f3 {[%emt 0:00:38]} Qb1 {[%emt 0:00:35]} 33. Bc1 {[%emt 0:02:24]} Nb3 {[%emt 0:01:20]} 34. Bd2 {[%emt 0:02:21]} Nxd2 {[%emt 0:00:44]} 35. Qxd2 {[%emt 0:00:03]} Bb4 {[%emt 0:00:12]} 0-1

[Event "2nd Cambridge Open 2024"]
[Site "Cambridge"]
[Date "2024.02.19"]
[Round "1.14"]
[White "Haubro, Martin"]
[Black "Okhai, Shabir"]
[Result "1-0"]
[ECO "C77"]
[WhiteElo "2418"]
[BlackElo "2114"]
[Annotator "ChessBase"]
[PlyCount "67"]
[EventDate "2024.02.18"]
[EventType "swiss"]
[EventCountry "ENG"]
[SourceTitle "playchess.com"]
[Source "ChessBase"]
[SourceQuality "1"]
[TimeControl "5400+30"]

1. e4 {[%emt 0:00:03]} e5 {[%emt 0:00:04]} 2. Nf3 {[%emt 0:00:04]} Nc6 {[%emt 0:00:04]} 3. Bb5 {[%emt 0:00:03]} a6 {[%emt 0:00:04]} 4. Ba4 {[%emt 0:00:03]} Nf6 {[%emt 0:00:04]} 5. d3 {[%emt 0:00:03]} d6 {[%emt 0:00:05]} 6. c3 {[%emt 0:00:04]} g6 {[%emt 0:00:04]} 7. O-O {[%emt 0:01:14]} Bg7 {[%emt 0:00:03]} 8. h3 {[%emt 0:01:09]} O-O {[%emt 0:00:15]} 9. Be3 {[%emt 0:00:10]} b5 {[%emt 0:02:11]} 10. Bc2 {[%emt 0:00:16]} d5 {[%emt 0:07:49]} 11. Nbd2 {[%emt 0:02:57]} dxe4 {[%emt 0:04:21]} 12. dxe4 {[%emt 0:01:24]} Qe7 {[%emt 0:07:08]} 13. b4 {[%emt 0:06:54]} Nd7 {[%emt 0:09:08]} 14. a4 {[%emt 0:00:26]} bxa4 {[%emt 0:04:53]} 15. Bxa4 {[%emt 0:11:22]} Na7 {[%emt 0:01:34]} 16. Nc4 {[%emt 0:05:17]} Rd8 {[%emt 0:01:45]} 17. Qc2 {[%emt 0:00:12]} Qe6 {[%emt 0:12:53]} 18. Bb3 {[%emt 0:04:49]} Qe7 {[%emt 0:03:09]} 19. Rfd1 {[%emt 0:00:52]} Nb5 {[%emt 0:03:50]} 20. Na5 {[%emt 0:05:11]} Nb8 {[%emt 0:01:45]} 21. Bd5 {[%emt 0:04:40]} c6 {[%emt 0:01:53]} 22. Bc5 {[%emt 0:15:41]} Qf6 {[%emt 0:03:21]} 23. Nxc6 {[%emt 0:01:08]} Nxc6 {[%emt 0:01:42]} 24. Bxc6 {[%emt 0:00:06]} Rb8 {[%emt 0:02:25]} 25. Rxd8+ {[%emt 0:13:30]} Qxd8 {[%emt 0:00:06]} 26. Rd1 {[%emt 0:00:04]} Qf6 {[%emt 0:05:52]} 27. Bxb5 {[%emt 0:01:38]} Rxb5 {[%emt 0:02:15]} 28. Rd6 {[%emt 0:00:08]} Qe7 {[%emt 0:00:52]} 29. c4 {[%emt 0:00:18]} Rxc5 {[%emt 0:02:15]} 30. bxc5 {[%emt 0:00:05]} Bf8 {[%emt 0:04:16]} 31. Qc3 {[%emt 0:07:53]} Qb7 {[%emt 0:01:05]} 32. Qxe5 {[%emt 0:00:21]} Bxd6 {[%emt 0:01:13]} 33. cxd6 {[%emt 0:00:05]} Be6 {[%emt 0:00:38]} 34. Ng5 {[%emt 0:02:43]} 1-0

[Event "2nd Cambridge Open 2024"]
[Site "Cambridge"]
[Date "2024.02.19"]
[Round "1.15"]
[White "Southcott-Moyers, Indy"]
[Black "Hebden, Mark L"]
[Result "1/2-1/2"]
[ECO "E73"]
[WhiteElo "2123"]
[BlackElo "2416"]
[Annotator "ChessBase"]
[PlyCount "132"]
[EventDate "2024.02.18"]
[EventType "swiss"]
[EventCountry "ENG"]
[SourceTitle "playchess.com"]
[Source "ChessBase"]
[SourceQuality "1"]
[TimeControl "5400+30"]

1. d4 {[%emt 0:00:03]} Nf6 {[%emt 0:06:30]} 2. c4 {[%emt 0:00:06]} g6 {[%emt 0:00:06]} 3. Nc3 {[%emt 0:00:06]} Bg7 {[%emt 0:00:05]} 4. e4 {[%emt 0:00:46]} d6 {[%emt 0:00:05]} 5. Be2 {[%emt 0:00:05]} O-O {[%emt 0:00:10]} 6. Be3 {[%emt 0:02:06]} e5 {[%emt 0:01:11]} 7. d5 {[%emt 0:02:01]} Na6 {[%emt 0:02:47]} 8. g4 {[%emt 0:03:02]} Nc5 {[%emt 0:00:38]} 9. f3 {[%emt 0:00:07]} h5 {[%emt 0:02:16]} 10. g5 {[%emt 0:17:18]} Nh7 {[%emt 0:00:09]} 11. h4 {[%emt 0:00:31]} f6 {[%emt 0:00:16]} 12. Qd2 {[%emt 0:00:48]} fxg5 {[%emt 0:00:44]} 13. hxg5 {[%emt 0:00:11]} a5 {[%emt 0:07:14]} 14. Nh3 {[%emt 0:04:26]} Bd7 {[%emt 0:03:58]} 15. Nf2 {[%emt 0:03:26]} Qe7 {[%emt 0:01:11]} 16. Rg1 {[%emt 0:03:45]} b6 {[%emt 0:00:24]} 17. O-O-O {[%emt 0:11:03]} a4 {[%emt 0:01:55]} 18. Kc2 {[%emt 0:07:51]} a3 {[%emt 0:03:56]} 19. b3 {[%emt 0:00:42]} Rf4 {[%emt 0:00:43]} 20. Bxf4 {[%emt 0:09:51]} exf4 {[%emt 0:00:18]} 21. Qxf4 {[%emt 0:04:12]} Rf8 {[%emt 0:00:38]} 22. Qd2 {[%emt 0:00:55]} Qe5 {[%emt 0:00:35]} 23. Rg2 {[%emt 0:05:08]} Rf7 {[%emt 0:05:05]} 24. Rdg1 {[%emt 0:03:33]} Na6 {[%emt 0:05:04]} 25. Nd3 {[%emt 0:00:42]} Qd4 {[%emt 0:05:41]} 26. Nb1 {[%emt 0:02:54]} Nc5 {[%emt 0:04:46]} 27. Qc3 {[%emt 0:07:29]} Nxd3 {[%emt 0:00:58]} 28. Qxd4 {[%emt 0:01:52]} Nb4+ {[%emt 0:01:06]} 29. Kc3 {[%emt 0:00:07]} Nxa2+ {[%emt 0:00:14]} 30. Kd3 {[%emt 0:00:04]} Nb4+ {[%emt 0:00:19]} 31. Kc3 {[%emt 0:00:07]} Bxd4+ {[%emt 0:00:38]} 32. Kxd4 {[%emt 0:00:08]} a2 {[%emt 0:00:13]} 33. Nd2 {[%emt 0:01:27]} a1=Q+ {[%emt 0:02:00]} 34. Rxa1 {[%emt 0:00:09]} Nc2+ {[%emt 0:00:04]} 35. Kd3 {[%emt 0:02:28]} Nxa1 {[%emt 0:00:16]} 36. Rg1 {[%emt 0:00:03]} Kg7 {[%emt 0:01:02]} 37. Rxa1 {[%emt 0:00:34]} Nxg5 {[%emt 0:00:08]} 38. Ke3 {[%emt 0:00:45]} Nh3 {[%emt 0:00:54]} 39. Ra7 {[%emt 0:01:00]} Nf4 {[%emt 0:02:30]} 40. Rxc7 {[%emt 0:00:33]} Nxe2 {[%emt 0:00:29]} 41. Kxe2 {[%emt 0:00:08]} g5 {[%emt 0:00:22]} 42. e5 {[%emt 0:02:25]} dxe5 {[%emt 0:02:26]} 43. Ne4 {[%emt 0:00:34]} Kg6 {[%emt 0:08:31]} 44. Rb7 {[%emt 0:00:34]} g4 {[%emt 0:00:13]} 45. Rxb6+ {[%emt 0:00:21]} Kg7 {[%emt 0:00:10]} 46. fxg4 {[%emt 0:02:40]} Bxg4+ {[%emt 0:00:15]} 47. Ke1 {[%emt 0:00:11]} h4 {[%emt 0:01:15]} 48. Nf2 {[%emt 0:01:30]} Bf5 {[%emt 0:02:13]} 49. c5 {[%emt 0:00:43]} h3 {[%emt 0:00:16]} 50. c6 {[%emt 0:00:35]} h2 {[%emt 0:00:37]} 51. Rb7 {[%emt 0:00:38]} Bc8 {[%emt 0:03:15]} 52. Rxf7+ {[%emt 0:00:11]} Kxf7 {[%emt 0:00:01]} 53. d6 {[%emt 0:00:07]} Ba6 {[%emt 0:00:11]} 54. Nh1 {[%emt 0:02:18]} Ke6 {[%emt 0:00:37]} 55. d7 {[%emt 0:00:08]} Ke7 {[%emt 0:00:07]} 56. Kf2 {[%emt 0:00:16]} Bb5 {[%emt 0:00:07]} 57. Kg3 {[%emt 0:00:33]} Bxc6 {[%emt 0:00:07]} 58. Kxh2 {[%emt 0:00:25]} Kxd7 {[%emt 0:00:13]} 59. Ng3 {[%emt 0:00:08]} Kd6 {[%emt 0:00:12]} 60. Kg1 {[%emt 0:00:08]} Kc5 {[%emt 0:00:06]} 61. Kf2 {[%emt 0:00:08]} Bd5 {[%emt 0:00:28]} 62. Ke3 {[%emt 0:00:30]} Bxb3 {[%emt 0:00:11]} 63. Ne4+ {[%emt 0:00:06]} Kd5 {[%emt 0:00:30]} 64. Nf6+ {[%emt 0:00:05]} Ke6 {[%emt 0:00:10]} 65. Ng4 {[%emt 0:00:03]} Bd1 {[%emt 0:00:06]} 66. Nxe5 {[%emt 0:00:04]} Kxe5 {[%emt 0:28:34]} 1/2-1/2